fUST/lending_fUST_20240617
["ID","MTS","AMOUNT","RATE_DAILY","PERIOD"]
[329718741,1718607036690,-500.0,0.00017052,2]
[329718742,1718607036702,-500.0,0.00017052,2]
[329718743,1718607036713,-500.0,0.00017052,2]
[329718744,1718607036730,-500.0,0.00017052,2]
[329718745,1718607036747,-500.0,0.00017052,2]
[329718746,1718607036760,-500.0,0.00017052,2]
[329718747,1718607036778,-500.0,0.00017052,2]
[329718748,1718607036791,-500.0,0.00017052,2]
[329718749,1718607036805,-500.0,0.00017052,2]
[329718750,1718607036845,-875.31,0.00017052,2]
[329718751,1718607036865,-504.96718267,0.00017052,2]
[329718752,1718607036882,-500.0,0.00017052,2]
[329718753,1718607036900,-213.40849237,0.00017052,2]
[329718754,1718607036917,-500.0,0.00017052,2]
[329718755,1718607036931,-283.47890172,0.00017052,2]
[329718756,1718607036950,-500.0,0.00017052,2]
[329718757,1718607036968,-500.0,0.00017052,2]
[329718758,1718607036979,-428.76416522,0.00017052,2]
[329718759,1718607036991,-527.34484277,0.00017052,2]
[329718760,1718607037001,-500.0,0.00017052,2]
[329718761,1718607037021,-500.0,0.00017052,2]
[329718762,1718607037035,-500.0,0.00017052,2]
[329718763,1718607037060,-500.0,0.00017052,2]
[329718764,1718607037074,-500.0,0.00017052,2]
[329718765,1718607037096,-500.0,0.00017052,2]
[329718766,1718607037109,-500.0,0.00017052,2]
[329718767,1718607037120,-495.43922768,0.00017052,2]
[329718768,1718607037143,-500.0,0.00017052,2]
[329718769,1718607037154,-500.0,0.00017052,2]
[329718770,1718607037181,-500.0,0.00017052,2]
[329718771,1718607037191,-392.58637574,0.00017052,2]
[329718772,1718607037210,-284.56196937,0.00017052,2]
[329718773,1718607037221,-36923.82841149,0.00017053,2]
[329718774,1718607037234,-500.0,0.00017053,2]
[329718775,1718607037246,-500.0,0.00017053,2]
[329718776,1718607037257,-507.6510764,0.00017053,2]
[329718777,1718607037283,-500.0,0.00017053,2]
[329718778,1718607037299,-505.19131123,0.00017053,2]
[329718779,1718607037313,-500.0,0.00017053,2]
[329718780,1718607037325,-500.0,0.00017053,2]
[329718781,1718607037340,-500.0,0.00017053,2]
[329718782,1718607037369,-511.14866386,0.00017053,2]
[329718783,1718607037384,-500.0,0.00017053,2]
[329718784,1718607037423,-500.0,0.00017053,2]
[329718785,1718607037444,-632.84737491,0.00017053,2]
[329718786,1718607037457,-500.0,0.00017053,2]
[329718787,1718607037476,-500.0,0.00017053,2]
[329718788,1718607037487,-509.83003634,0.00017053,2]
[329718789,1718607037508,-500.0,0.00017053,2]
[329718790,1718607037524,-500.0,0.00017053,2]
[329718791,1718607037539,-493.76853558,0.00017053,2]
[329718792,1718607037554,-500.0,0.00017053,2]
[329718793,1718607037565,-500.0,0.00017053,2]
[329718794,1718607037576,-500.0,0.00017053,2]
[329718795,1718607037603,-500.0,0.00017053,2]
[329718796,1718607037632,-500.0,0.00017053,2]
[329718797,1718607037647,-500.0,0.00017053,2]
[329718798,1718607037678,-500.0,0.00017053,2]
[329718799,1718607037723,-500.0,0.00017053,2]
[329718800,1718607037737,-500.0,0.00017053,2]
[329718801,1718607037754,-500.0,0.00017053,2]
[329718802,1718607037776,-500.0,0.00017053,2]
[329718803,1718607037790,-5791.81,0.00017053,2]
[329718804,1718607037810,-511.50768398,0.00017053,2]
[329718805,1718607037827,-500.0,0.00017053,2]
[329718806,1718607037844,-500.0,0.00017053,2]
[329718807,1718607037857,-500.0,0.00017053,2]
[329718808,1718607037882,-900.96,0.00017053,2]
[329718809,1718607037900,-500.0,0.00017053,2]
[329718810,1718607037912,-500.0,0.00017053,2]
[329718811,1718607037958,-1407.39,0.00017053,2]
[329718812,1718607037971,-500.0,0.00017053,2]
[329718813,1718607037983,-500.0,0.00017053,2]
[329718814,1718607037994,-500.0,0.00017053,2]
[329718815,1718607038007,-500.0,0.00017053,2]
[329718816,1718607038020,-500.0,0.00017053,2]
[329718817,1718607038032,-579.35770117,0.00017053,2]
[329718818,1718607038059,-505.92601737,0.00017053,2]
[329718819,1718607038101,-500.0,0.00017053,2]
[329718820,1718607038113,-514.32751459,0.00017053,2]
[329718821,1718607038128,-601.12957958,0.00017053,2]
[329718822,1718607038143,-500.0,0.00017053,2]
[329718823,1718607038157,-518.06220816,0.00017053,2]
[329718824,1718607038168,-513.04363823,0.00017053,2]
[329718825,1718607038186,-504.60067324,0.00017053,2]
[329718826,1718607038207,-500.0,0.00017053,2]
[329718827,1718607038222,-155.53593311,0.00017053,2]
[329718828,1718607038237,-500.0,0.00017053,2]
[329718829,1718607038249,-500.0,0.00017053,2]
[329718830,1718607038276,-500.0,0.00017053,2]
[329718831,1718607038288,-500.0,0.00017053,2]
[329718832,1718607038299,-500.0,0.00017053,2]
[329718833,1718607038311,-523.74346953,0.00017053,2]
[329718834,1718607038322,-500.0,0.00017053,2]
[329718835,1718607038333,-862.09,0.00017053,2]
[329718836,1718607038344,-500.0,0.00017053,2]
[329718837,1718607038366,-500.0,0.00017053,2]
[329718838,1718607038378,-500.93397112,0.00017053,2]
[329718839,1718607038389,-500.0,0.00017053,2]
[329718840,1718607038402,-500.0,0.00017053,2]
[329718841,1718607038416,-1020.12,0.00017053,2]
[329718842,1718607038427,-519.68763489,0.00017053,2]
[329718843,1718607038438,-500.0,0.00017053,2]
[329718844,1718607038453,-531.57818207,0.00017053,2]
[329718845,1718607038464,-500.0,0.00017053,2]
[329718846,1718607038475,-500.0,0.00017053,2]
[329718847,1718607038485,-500.0,0.00017053,2]
[329718848,1718607038499,-500.0,0.00017053,2]
[329718849,1718607038511,-4136.35208183,0.00017054,15]
[329718850,1718607038524,-500.0,0.00017054,2]
[329718851,1718607038546,-511.98926149,0.00017054,2]
[329718852,1718607038562,-515.04609544,0.00017054,2]
[329718853,1718607038577,-500.0,0.00017054,2]
[329718854,1718607038606,-416.17932978,0.00017054,2]
[329718855,1718607038622,-506.44061964,0.00017054,2]
[329718856,1718607038633,-500.0,0.00017054,2]
[329718857,1718607038652,-500.0,0.00017054,2]
[329718858,1718607038663,-500.0,0.00017054,2]
[329718859,1718607038675,-500.0,0.00017054,2]
[329718860,1718607038690,-500.0,0.00017054,2]
[329718861,1718607038709,-500.0,0.00017054,2]
[329718862,1718607038720,-500.0,0.00017054,2]
[329718863,1718607038734,-502.19646419,0.00017054,2]
[329718864,1718607038751,-500.0,0.00017054,2]
[329718865,1718607038765,-500.0,0.00017054,2]
[329718866,1718607038781,-500.0,0.00017054,2]
[329718867,1718607038795,-500.0,0.00017054,2]
[329718868,1718607038807,-500.0,0.00017054,2]
[329718869,1718607038819,-500.0,0.00017054,2]
[329718870,1718607038833,-502.73040093,0.00017054,2]
[329718871,1718607038864,-509.74159294,0.00017054,2]
[329718872,1718607038877,-502.83311356,0.00017054,2]
[329718873,1718607038894,-517.24311157,0.00017054,2]
[329718874,1718607038912,-500.0,0.00017054,2]
[329718875,1718607038953,-507.83581227,0.00017054,2]
[329718876,1718607038967,-500.0,0.00017054,2]
[329718877,1718607038978,-500.0,0.00017054,2]
[329718878,1718607038989,-500.0,0.00017054,2]
[329718879,1718607039020,-636.17858401,0.00017054,2]
[329718880,1718607039035,-500.0,0.00017054,2]
[329718881,1718607039051,-634.98714651,0.00017054,2]
[329718882,1718607039069,-500.0,0.00017054,2]
[329718883,1718607039085,-508.9919628,0.00017054,2]
[329718884,1718607039100,-615.48317718,0.00017054,2]
[329718885,1718607039129,-503.57856363,0.00017054,2]
[329718886,1718607039172,-500.0,0.00017054,2]
[329718887,1718607039190,-576.31191636,0.00017054,2]
[329718888,1718607039225,-500.0,0.00017054,2]
[329718889,1718607039263,-500.0,0.00017054,2]
[329718890,1718607039305,-502.16623336,0.00017054,2]
[329718891,1718607039322,-500.0,0.00017054,2]
[329718892,1718607039370,-500.0,0.00017054,2]
[329718893,1718607039445,-500.0,0.00017054,2]
[329718894,1718607039468,-500.0,0.00017054,2]
[329718895,1718607039493,-500.0,0.00017054,2]
[329718896,1718607039505,-504.47304458,0.00017054,2]
[329718897,1718607039521,-500.0,0.00017054,2]
[329718898,1718607039534,-500.0,0.00017054,2]
[329718899,1718607039555,-504.75752136,0.00017054,2]
[329718900,1718607039567,-500.0,0.00017054,2]
[329718901,1718607039585,-507.69619093,0.00017054,2]
[329718902,1718607039597,-502.49575241,0.00017054,2]
[329718903,1718607039609,-514.26240113,0.00017054,2]
[329718904,1718607039627,-500.0,0.00017054,2]
[329718905,1718607039642,-500.0,0.00017054,2]
[329718906,1718607039654,-500.0,0.00017054,2]
[329718907,1718607039670,-500.0,0.00017054,2]
[329718908,1718607039697,-501.3443453,0.00017054,2]
[329718909,1718607039712,-503.2729486,0.00017054,2]
[329718910,1718607039735,-502.47169054,0.00017054,2]
[329718911,1718607039775,-507.31497033,0.00017054,2]
[329718912,1718607039791,-500.0,0.00017054,2]
[329718913,1718607039806,-500.0,0.00017054,2]
[329718914,1718607039819,-502.10605408,0.00017054,2]
[329718915,1718607039838,-638.19128469,0.00017054,2]
[329718916,1718607039852,-506.00471581,0.00017054,2]
[329718917,1718607039868,-522.53990788,0.00017054,2]
[329718919,1718607039894,-500.0,0.00017054,2]
[329718921,1718607039908,-501.42860914,0.00017054,2]
[329718923,1718607039932,-459.26904403,0.00017054,2]
[329718925,1718607039961,-276.6638316,0.00017054,2]
[329718927,1718607039979,-500.0,0.00017054,2]
[329718928,1718607039992,-500.0,0.00017054,2]
[329718930,1718607040012,-500.0,0.00017054,2]
[329718932,1718607040038,-503.9330952,0.00017054,2]
[329718934,1718607040061,-505.35545205,0.00017054,2]
[329718935,1718607040098,-500.0,0.00017054,2]
[329718938,1718607040125,-514.85458249,0.00017054,2]
[329718940,1718607040142,-503.20887304,0.00017054,2]
[329718941,1718607040156,-506.89524485,0.00017054,2]
[329718943,1718607040176,-500.0,0.00017054,2]
[329718946,1718607040213,-500.0,0.00017054,2]
[329718947,1718607040241,-500.0,0.00017054,2]
[329718948,1718607040277,-500.0,0.00017054,2]
[329718949,1718607040297,-370.91440759,0.00017054,2]
[329718950,1718607040318,-500.0,0.00017054,2]
[329718951,1718607040462,-439.81539881,0.00017054,2]
[329718952,1718607040479,-604.28282644,0.00017054,2]
[329718953,1718607040530,-500.0,0.00017054,2]
[329718954,1718607040566,-500.0,0.00017054,2]
[329718955,1718607040601,-500.0,0.00017054,2]
[329718956,1718607040656,-504.04160243,0.00017054,2]
[329718957,1718607040667,-500.0,0.00017054,2]
[329718959,1718607040700,-442.82273534,0.00017054,2]
[329718960,1718607040738,-517.05971648,0.00017054,2]
[329718961,1718607040769,-500.0,0.00017054,2]
[329718963,1718607040815,-514.47263742,0.00017054,2]
[329718965,1718607040845,-507.59330122,0.00017054,2]
[329718966,1718607040884,-503.69357454,0.00017054,2]
[329718969,1718607040902,-500.0,0.00017054,2]
[329718970,1718607040930,-500.0,0.00017054,2]
[329718971,1718607040941,-500.0,0.00017054,2]
[329718972,1718607040952,-537.69073489,0.00017054,2]
[329718973,1718607040963,-514.74827009,0.00017054,2]
[329718974,1718607040976,-515.54235663,0.00017054,2]
[329718975,1718607041010,-500.0,0.00017054,2]
[329718976,1718607041033,-537.15838422,0.00017054,2]
[329718977,1718607041044,-496.39024279,0.00017054,2]
[329718978,1718607041058,-504.34275877,0.00017054,2]
[329718979,1718607041080,-500.0,0.00017054,2]
[329718980,1718607041095,-500.0,0.00017054,2]
[329718981,1718607041110,-500.0,0.00017054,2]
[329718982,1718607041148,-500.0,0.00017054,2]
[329718983,1718607041176,-500.0,0.00017054,2]
[329718985,1718607041190,-500.0,0.00017054,2]
[329718986,1718607041202,-500.0,0.00017054,2]
[329718988,1718607041215,-504.1380783,0.00017054,2]
[329718990,1718607041232,-512.11927369,0.00017054,2]
[329718991,1718607041261,-304.38469578,0.00017054,2]
[329718992,1718607041280,-500.0,0.00017054,2]
[329718993,1718607041312,-500.0,0.00017054,2]
[329718994,1718607041324,-502.65457842,0.00017054,2]
[329718995,1718607041336,-503.73228866,0.00017054,2]
[329718996,1718607041352,-500.0,0.00017054,2]
[329718997,1718607041389,-500.0,0.00017054,2]
[329718998,1718607041405,-500.0,0.00017054,2]
[329718999,1718607041420,-500.0,0.00017054,2]
[329719000,1718607041438,-621.48909592,0.00017054,2]
[329719001,1718607041465,-503.35718824,0.00017054,2]
[329719002,1718607041476,-500.0,0.00017054,2]
[329719003,1718607041492,-500.0,0.00017054,2]
[329719004,1718607041506,-508.63335589,0.00017054,2]
[329719005,1718607041518,-500.0,0.00017054,2]
[329719006,1718607041529,-500.0,0.00017054,2]
[329719007,1718607041539,-500.0,0.00017054,2]
[329719008,1718607041551,-500.0,0.00017054,2]
[329719009,1718607041562,-500.0,0.00017054,2]
[329719010,1718607041575,-485.8195787,0.00017054,2]
[329719011,1718607041586,-514.90461297,0.00017054,2]
[329719012,1718607041596,-229.23098607,0.00017054,2]
[329719013,1718607041613,-513.677679,0.00017054,2]
[329719014,1718607041625,-510.12209421,0.00017054,2]
[329719015,1718607041637,-500.0,0.00017054,2]
[329719016,1718607041648,-506.45045496,0.00017054,2]
[329719017,1718607041659,-500.0,0.00017054,2]
[329719018,1718607041671,-500.0,0.00017054,2]
[329719019,1718607041685,-500.0,0.00017054,2]
[329719020,1718607041697,-503.22829206,0.00017054,2]
[329719022,1718607041714,-500.0,0.00017054,2]
[329719024,1718607041736,-500.0,0.00017054,2]
[329719025,1718607041747,-500.0,0.00017054,2]
[329719026,1718607041764,-500.0,0.00017054,2]
[329719027,1718607041775,-500.0,0.00017054,2]
[329719028,1718607041788,-506.66874224,0.00017054,2]
[329719029,1718607041799,-511.9503795,0.00017054,2]
[329719030,1718607041815,-500.0,0.00017054,2]
[329719031,1718607041827,-523.18881839,0.00017054,2]
[329719032,1718607041843,-500.0,0.00017054,2]
[329719033,1718607041855,-500.0,0.00017054,2]
[329719034,1718607041865,-500.0,0.00017054,2]
[329719035,1718607041881,-500.0,0.00017054,2]
[329719036,1718607041903,-464.41964176,0.00017054,2]
[329719037,1718607041948,-500.0,0.00017054,2]
[329719038,1718607041959,-500.0,0.00017054,2]
[329719039,1718607041970,-506.53653047,0.00017054,2]
[329719040,1718607041990,-500.0,0.00017054,2]
[329719041,1718607042001,-500.0,0.00017054,2]
[329719042,1718607042012,-500.0,0.00017054,2]
[329719043,1718607042039,-500.0,0.00017054,2]
[329719044,1718607042050,-500.0,0.00017054,2]
[329719045,1718607042061,-500.0,0.00017054,2]
[329719046,1718607042072,-508.48167899,0.00017054,2]
[329719047,1718607042083,-524.6531469,0.00017054,2]
[329719048,1718607042094,-512.03678094,0.00017054,2]
[329719049,1718607042105,-500.0,0.00017054,2]
[329719050,1718607042118,-502.09552427,0.00017054,2]
[329719051,1718607042128,-515.23555991,0.00017054,2]
[329719052,1718607042139,-506.85696747,0.00017054,2]
[329719053,1718607042155,-282.0326733,0.00017054,2]
[329719054,1718607042175,-500.0,0.00017054,2]
[329719055,1718607042191,-500.0,0.00017054,2]
[329719056,1718607042212,-508.682542,0.00017054,2]
[329719057,1718607042224,-503.08414046,0.00017054,2]
[329719058,1718607042236,-511.64771545,0.00017054,2]
[329719059,1718607042254,-500.0,0.00017054,2]
[329719060,1718607042274,-500.0,0.00017054,2]
[329719061,1718607042292,-500.0,0.00017054,2]
[329719062,1718607042310,-511.63588,0.00017054,2]
[329719063,1718607042328,-500.0,0.00017054,2]
[329719064,1718607042351,-522.15283086,0.00017054,2]
[329719065,1718607042363,-500.0,0.00017054,2]
[329719066,1718607042379,-500.0,0.00017054,2]
[329719067,1718607042393,-520.52033147,0.00017054,2]
[329719068,1718607042405,-500.0,0.00017054,2]
[329719069,1718607042421,-503.95720093,0.00017054,2]
[329719070,1718607042444,-500.0,0.00017054,2]
[329719071,1718607042484,-600.0,0.00017054,2]
[329719072,1718607042502,-500.0,0.00017054,2]
[329719073,1718607042516,-500.0,0.00017054,2]
[329719074,1718607042530,-318.33381006,0.00017054,2]
[329719075,1718607042549,-500.0,0.00017054,2]
[329719076,1718607042562,-500.0,0.00017054,2]
[329719077,1718607042576,-500.0,0.00017054,2]
[329719078,1718607042588,-500.0,0.00017054,2]
[329719079,1718607042601,-462.08789884,0.00017054,2]
[329719080,1718607042629,-516.36555558,0.00017054,2]
[329719081,1718607042656,-500.0,0.00017054,2]
[329719082,1718607042671,-500.40302661,0.00017054,2]
[329719083,1718607042683,-500.0,0.00017054,2]
[329719084,1718607042700,-500.57471446,0.00017054,2]
[329719085,1718607042714,-511.44248332,0.00017054,2]
[329719086,1718607042728,-500.0,0.00017054,2]
[329719087,1718607042740,-503.12616286,0.00017054,2]
[329719088,1718607042750,-500.0,0.00017054,2]
[329719089,1718607042772,-505.0252009,0.00017054,2]
[329719090,1718607042790,-500.0,0.00017054,2]
[329719091,1718607042801,-534.28848373,0.00017054,2]
[329719092,1718607042812,-506.70671637,0.00017054,2]
[329719093,1718607042829,-500.0,0.00017054,2]
[329719094,1718607042840,-500.0,0.00017054,2]
[329719095,1718607042860,-500.0,0.00017054,2]
[329719096,1718607042875,-1043.04307048,0.00017054,2]
[329719097,1718607042903,-502.26029972,0.00017054,2]
[329719098,1718607042924,-151.0,0.00017054,2]
[329719099,1718607042943,-151.0,0.00017054,2]
[329719100,1718607042972,-500.0,0.00017054,2]
[329719101,1718607042984,-500.0,0.00017054,2]
[329719102,1718607043040,-502.18714375,0.00017054,2]
[329719103,1718607043056,-500.0,0.00017054,2]
[329719104,1718607043076,-502.99970365,0.00017054,2]
[329719105,1718607043122,-500.0,0.00017054,2]
[329719106,1718607043153,-3712.46,0.00017054,2]
[329719107,1718607043172,-500.0,0.00017054,2]
[329719108,1718607043205,-151.0,0.00017054,2]
[329719109,1718607043231,-151.0,0.00017054,2]
[329719110,1718607043254,-504.58662084,0.00017054,2]
[329719111,1718607043281,-500.0,0.00017054,2]
[329719112,1718607043299,-556.93877472,0.00017054,2]
[329719113,1718607043340,-151.0,0.00017054,2]
[329719114,1718607043357,-500.0,0.00017054,2]
[329719115,1718607043371,-500.0,0.00017054,2]
[329719116,1718607043399,-500.0,0.00017054,2]
[329719117,1718607043421,-151.0,0.00017054,2]
[329719118,1718607043444,-153.509475,0.00017054,2]
[329719119,1718607043458,-500.0,0.00017054,2]
[329719120,1718607043469,-520.29831724,0.00017054,2]
[329719121,1718607043483,-500.0,0.00017054,2]
[329719122,1718607043495,-502.7276112,0.00017054,2]
[329719123,1718607043507,-500.0,0.00017054,2]
[329719124,1718607043521,-500.0,0.00017054,2]
[329719125,1718607043532,-509.67054316,0.00017054,2]
[329719126,1718607043543,-502.76452503,0.00017054,2]
[329719127,1718607043555,-500.0,0.00017054,2]
[329719128,1718607043578,-500.0,0.00017054,2]
[329719129,1718607043594,-214.51976,0.00017054,2]
[329719130,1718607043618,-500.0,0.00017054,2]
[329719131,1718607043629,-214.51976,0.00017054,2]
[329719132,1718607043641,-214.51976,0.00017054,2]
[329719133,1718607043672,-214.51976,0.00017054,2]
[329719134,1718607043697,-500.0,0.00017054,2]
[329719135,1718607043716,-151.0,0.00017054,2]
[329719136,1718607043743,-151.0,0.00017054,2]
[329719137,1718607043769,-510.0174817,0.00017054,2]
[329719138,1718607043788,-500.0,0.00017055,2]
[329719139,1718607043814,-500.0,0.00017055,2]
[329719141,1718607043840,-500.0,0.00017055,2]
[329719143,1718607043853,-151.0,0.00017055,2]
[329719145,1718607043882,-151.0,0.00017055,2]
[329719148,1718607043925,-693.61,0.00017055,2]
[329719149,1718607043942,-583.80547217,0.00017055,2]
[329719150,1718607043968,-500.0,0.00017055,2]
[329719151,1718607044033,-151.0,0.00017055,2]
[329719152,1718607044076,-500.0,0.00017055,2]
[329719153,1718607044090,-429.11491675,0.00017055,2]
[329719160,1718607044656,-500.0,0.00017053,2]
[329719161,1718607044669,-498.69561994,0.00017055,2]
[329719175,1718607047993,-698.14167766,0.00016338,2]
[329719176,1718607048005,-500.0,0.00017053,2]
[329719177,1718607048016,-500.0,0.00017053,2]
[329719178,1718607048032,-500.0,0.00017054,2]
[329719180,1718607048046,-222.39349873,0.00017054,2]
[329719181,1718607048071,-170.51946331,0.00017055,2]
[329719182,1718607048112,-151.0,0.00017055,2]
[329719183,1718607048140,-151.0,0.00017055,2]
[329719184,1718607048170,-500.0,0.00017055,2]
[329719185,1718607048180,-1863.4,0.00017055,2]
[329719186,1718607048193,-153.683622,0.00017055,2]
[329719187,1718607048208,-500.0,0.00017055,2]
[329719188,1718607048251,-500.0,0.00017055,2]
[329719189,1718607048267,-500.0,0.00017055,2]
[329719190,1718607048278,-500.0,0.00017055,2]
[329719191,1718607048290,-5297.32,0.00017055,2]
[329719192,1718607048304,-500.0,0.00017055,2]
[329719193,1718607048315,-500.0,0.00017055,2]
[329719194,1718607048342,-500.0,0.00017055,2]
[329719195,1718607048352,-500.0,0.00017055,2]
[329719196,1718607048362,-357.81144644,0.00017055,2]
[329719197,1718607048372,-308.65336972,0.00017056,13]
[329719198,1718607048384,-506.95577199,0.00017056,2]
[329719199,1718607048396,-509.44155376,0.00017056,2]
[329719200,1718607048410,-503.22267867,0.00017056,2]
[329719201,1718607048442,-500.0,0.00017056,2]
[329719202,1718607048455,-500.0,0.00017056,2]
[329719203,1718607048466,-556.58752075,0.00017056,2]
[329719204,1718607048496,-500.0,0.00017056,2]
[329719205,1718607048507,-618.57151986,0.00017056,2]
[329719206,1718607048524,-500.0,0.00017056,2]
[329719207,1718607048535,-503.88926442,0.00017056,2]
[329719208,1718607048580,-500.0,0.00017056,2]
[329719209,1718607048612,-511.44721862,0.00017056,2]
[329719210,1718607048658,-505.97401972,0.00017056,2]
[329719211,1718607048669,-500.0,0.00017056,2]
[329719212,1718607048684,-500.0,0.00017056,2]
[329719213,1718607048717,-529.58200696,0.00017056,2]
[329719214,1718607048732,-503.29419198,0.00017056,2]
[329719215,1718607048743,-500.0,0.00017056,2]
[329719216,1718607048768,-502.90101363,0.00017056,2]
[329719217,1718607048783,-504.52960763,0.00017056,2]
[329719218,1718607048794,-507.58036164,0.00017056,2]
[329719219,1718607048811,-517.35472873,0.00017056,2]
[329719220,1718607048824,-502.99113282,0.00017056,2]
[329719221,1718607048835,-506.80133224,0.00017056,2]
[329719222,1718607048855,-505.74961021,0.00017056,2]
[329719224,1718607048869,-501.70599281,0.00017056,2]
[329719225,1718607048892,-506.51219512,0.00017056,2]
[329719226,1718607048904,-223.81476206,0.00017056,2]
[329719227,1718607048915,-511.11373749,0.00017056,2]
[329719228,1718607048925,-502.12413421,0.00017056,2]
[329719229,1718607048936,-204.48784511,0.00017056,2]
[329719230,1718607048948,-500.0,0.00017056,2]
[329719231,1718607048960,-509.08036047,0.00017056,2]
[329719232,1718607048972,-508.52659612,0.00017056,2]
[329719233,1718607048983,-504.90844308,0.00017056,2]
[329719234,1718607048994,-500.0,0.00017056,2]
[329719235,1718607049012,-500.0,0.00017056,2]
[329719236,1718607049023,-503.16073699,0.00017056,2]
[329719237,1718607049035,-518.19561675,0.00017056,2]
[329719238,1718607049046,-500.0,0.00017056,2]
[329719239,1718607049072,-151.0,0.00017056,2]
[329719240,1718607049083,-500.0,0.00017056,2]
[329719241,1718607049104,-500.0,0.00017056,2]
[329719242,1718607049118,-161.587946,0.00017056,2]
[329719243,1718607049130,-522.90856433,0.00017056,2]
[329719244,1718607049142,-151.0,0.00017056,2]
[329719245,1718607049172,-505.17291083,0.00017056,2]
[329719246,1718607049185,-500.0,0.00017056,2]
[329719247,1718607049200,-500.0,0.00017056,2]
[329719248,1718607049232,-514.14969855,0.00017056,2]
[329719249,1718607049257,-151.0,0.00017056,2]
[329719250,1718607049284,-500.0,0.00017056,2]
[329719251,1718607049324,-337.19680702,0.00017056,2]
[329719252,1718607049339,-500.0,0.00017056,2]
[329719253,1718607049358,-500.0,0.00017056,2]
[329719254,1718607049372,-500.0,0.00017056,2]
[329719255,1718607049383,-151.0,0.00017056,2]
[329719256,1718607049397,-151.0,0.00017056,2]
[329719257,1718607049414,-151.0,0.00017056,2]
[329719258,1718607049430,-151.0,0.00017056,2]
[329719259,1718607049453,-151.0,0.00017056,2]
[329719260,1718607049467,-214.51976,0.00017056,2]
[329719261,1718607049486,-214.51976,0.00017056,2]
[329719262,1718607049497,-151.0,0.00017056,2]
[329719263,1718607049508,-152.63829,0.00017057,2]
[329719264,1718607049535,-592.19407371,0.00017069,2]
[329719265,1718607049547,-500.0,0.00017069,2]
[329719266,1718607049565,-500.0,0.00017069,2]
[329719267,1718607049585,-500.0,0.0001707,2]
[329719268,1718607049611,-500.0,0.0001707,2]
[329719269,1718607049630,-500.0,0.0001707,2]
[329719270,1718607049642,-20000.0,0.00017071,2]
[329719271,1718607049653,-151.0,0.00017071,2]
[329719272,1718607049665,-151.0,0.00017071,2]
[329719273,1718607049683,-151.0,0.00017071,2]
[329719274,1718607049696,-214.51976,0.00017071,2]
[329719275,1718607049711,-214.51976,0.00017071,2]
[329719276,1718607049723,-151.0,0.00017071,2]
[329719277,1718607049740,-321.7,0.0001726,2]
[329719278,1718607049775,-500.0,0.00017325,2]
[329719279,1718607049813,-3924.57,0.00017325,2]
[329719280,1718607049838,-500.0,0.00017326,2]
[329719281,1718607049852,-500.0,0.00017326,2]
[329719282,1718607049866,-500.0,0.00017326,2]
[329719283,1718607049879,-500.0,0.00017326,2]
[329719284,1718607049897,-500.0,0.00017326,2]
[329719285,1718607049922,-500.0,0.00017326,2]
[329719286,1718607049935,-500.0,0.00017326,2]
[329719287,1718607049949,-500.0,0.00017326,2]
[329719288,1718607049963,-500.0,0.00017326,2]
[329719289,1718607049981,-875.31,0.00017326,2]
[329719290,1718607049994,-500.0,0.00017326,2]